bitfinex/quotes_ETHUSD_20250630
["timestamp","ask_amount","ask_price","bid_price","bid_amount"]
[1751302516756,4.03551251,2478.0,2477.9,0.7516]
[1751302517120,4.03551251,2478.0,2477.9,8.5556]
[1751302517659,4.03551251,2478.0,2477.9,0.2016]
[1751302517825,4.03551251,2478.0,2477.9,8.5556]
[1751302518980,0.01,2478.1,2477.9,8.5556]
[1751302519288,0.01,2478.1,2478.0,0.85556]
[1751302520475,4.04534966,2478.1,2478.0,0.85556]
[1751302521899,4.03551251,2478.0,2477.9,8.5556]
[1751302522671,4.04540875,2478.1,2477.9,8.5556]
[1751302524201,4.03551251,2478.0,2477.9,8.5556]
[1751302524700,4.04544364,2478.1,2477.9,8.5556]
[1751302525296,4.03551251,2478.0,2477.9,8.5556]
[1751302525498,0.01,2478.1,2477.9,9.48658]
[1751302525699,0.01,2478.1,2478.0,11.3488]
[1751302525902,0.01,2478.1,2478.0,15.38431251]
[1751302529078,0.8346,2479.1,2478.6,0.55]
[1751302529411,0.01,2479.1,2478.8,0.55]
[1751302529591,0.01,2479.1,2479.0,0.2016]
[1751302529789,4.04372191,2479.1,2479.0,6.8176]
[1751302530178,0.01,2479.1,2479.0,6.8176]
[1751302530503,4.04372191,2479.1,2479.0,6.8176]
[1751302530701,0.01,2479.1,2479.0,6.8176]
[1751302531617,0.01,2479.1,2479.0,8.07156021]
[1751302533909,4.04372191,2479.1,2479.0,8.07156021]
[1751302534114,0.01,2479.1,2479.0,8.07156021]
[1751302534280,4.04372191,2479.1,2479.0,8.07156021]
[1751302534482,0.01,2479.1,2479.0,8.07156021]
[1751302534688,0.01,2479.1,2479.0,8.62156021]
[1751302535593,4.04372191,2479.1,2479.0,8.62156021]
[1751302536321,0.01,2479.1,2479.0,8.62156021]
[1751302537121,4.04372191,2479.1,2479.0,8.5326]
[1751302537328,0.01,2479.1,2479.0,8.5326]
[1751302538423,0.01,2479.1,2479.0,13.11648463]
[1751302538635,0.01,2479.1,2479.0,23.87738463]
[1751302538833,0.0998906,2479.2,2479.1,15.34462191]
[1751302539829,4.04214891,2480.1,2480.0,0.55]
[1751302539830,0.01,2480.1,2480.0,0.55]
[1751302540120,0.01,2480.1,2480.0,13.12485806]
[1751302540429,0.01,2480.1,2480.0,19.0926]
[1751302541217,0.01,2480.1,2480.0,18.5426]
[1751302541406,4.04209548,2480.1,2480.0,8.5426]
[1751302541613,0.01,2480.1,2480.0,8.5426]
[1751302541815,4.04209548,2480.1,2480.0,8.5426]
[1751302542820,4.04209548,2480.1,2480.0,9.39686]
[1751302543913,4.04209548,2480.1,2480.0,0.2016]
[1751302544113,4.04209548,2480.1,2480.0,7.78034891]
[1751302544321,4.04209548,2480.1,2480.0,6.8206]
[1751302545325,4.80919548,2480.1,2480.0,6.8206]
[1751302545927,4.80919548,2480.1,2480.0,6.8196]
[1751302546312,5.69347844,2480.1,2480.0,0.2016]
[1751302546530,4.80780853,2479.6,2479.5,11.413]
[1751302546731,4.80780853,2479.6,2479.5,18.99747858]
[1751302546895,4.80780853,2479.6,2479.5,19.19907858]
[1751302547095,4.80780853,2479.6,2479.5,1.16107858]
[1751302547391,4.80780853,2479.6,2479.5,0.2016]
[1751302547596,5.69186752,2479.6,2479.5,6.8256]
[1751302548335,5.70336752,2479.6,2479.5,0.2016]
[1751302548534,4.81930853,2479.6,2479.5,0.2016]
[1751302552939,4.03307118,2479.5,2479.4,6.8256]
[1751302553433,4.03307118,2479.5,2479.4,7.78746106]
[1751302555831,4.03281926,2479.7,2479.4,7.78746106]
[1751302556036,4.03242066,2479.9,2479.6,7.29095913]
[1751302556037,4.03253226,2479.9,2479.6,7.29095913]
[1751302556268,4.03253226,2479.9,2479.8,0.2016]
[1751302556572,4.03253226,2479.9,2479.8,6.8216]
[1751302556949,4.03236044,2480.0,2479.8,6.8216]
[1751302557184,4.03242066,2479.9,2479.8,6.8216]
[1751302557468,4.03242066,2479.9,2479.8,8.40505591]
[1751302558269,4.04221534,2480.1,2479.8,9.73475591]
[1751302558637,4.03225807,2480.0,2479.8,9.53315591]
[1751302558869,4.04216368,2480.1,2479.8,9.53315591]
[1751302559036,4.04216368,2480.1,2480.0,0.2016]
[1751302560559,0.01,2480.1,2480.0,0.2016]
[1751302562603,0.01,2480.1,2480.0,15.46507808]
[1751302562938,0.01,2480.1,2480.0,16.29177808]
[1751302564065,0.01,2480.1,2480.0,3.91952002]
[1751302564276,0.01,2480.1,2480.0,10.8828026]
[1751302564447,0.01,2480.1,2480.0,14.91506066]
[1751302564846,0.01,2480.1,2480.0,10.8828026]
[1751302565550,0.01,2480.1,2480.0,12.08863335]
[1751302566179,0.01,2480.1,2480.0,12.08663335]
[1751302566379,0.01,2480.1,2480.0,14.01745135]
[1751302566584,0.01,2480.1,2480.0,9.71170941]
[1751302566783,0.01,2480.1,2480.0,18.04770941]
[1751302566984,0.01,2480.1,2480.0,14.01545135]
[1751302567365,0.01,2480.1,2480.0,12.8096206]
[1751302567889,0.01,2480.1,2480.0,6.07930211]
[1751302568189,0.01,2480.1,2480.0,14.41330211]
[1751302568595,0.01,2480.1,2480.0,12.8076206]
[1751302569299,0.01,2480.1,2480.0,18.44556017]
[1751302570088,0.01,2480.1,2480.0,16.83987866]
[1751302570711,0.01,2480.1,2480.0,12.8076206]
[1751302571199,0.01,2480.1,2480.0,16.83987866]
[1751302573108,0.01,2480.1,2480.0,12.8076206]
[1751302573911,0.01,2480.1,2480.0,3.509118]
[1751302574206,0.01,2480.1,2480.0,15.87137606]
[1751302575007,0.01,2480.1,2480.0,11.839118]
[1751302576414,0.01,2480.1,2480.0,14.41055776]
[1751302576978,0.01,2480.1,2480.0,6.08055776]
[1751302577304,0.01,2480.1,2480.0,14.41055776]
[1751302578187,0.01,2480.1,2480.0,18.44281582]
[1751302578369,0.01,2480.1,2480.0,14.41055776]
[1751302578570,0.01,2480.1,2480.0,18.44281582]
[1751302578775,0.01,2480.1,2480.0,14.41055776]
[1751302579694,0.01,2480.1,2480.0,18.44281582]
[1751302580006,0.01,2480.1,2480.0,6.08055776]
[1751302580306,0.01,2480.1,2480.0,14.41055776]
[1751302580626,0.01,2480.1,2480.0,18.44281582]
[1751302581255,0.01,2480.1,2480.0,16.83566597]
[1751302582301,0.01,2480.1,2480.0,19.24639074]
[1751302583231,0.01,2480.1,2480.0,6.05743268]
[1751302583429,0.01,2480.1,2480.0,16.00896597]
[1751302583629,0.01,2480.1,2480.0,11.97670791]
[1751302583823,0.01,2480.1,2480.0,16.00896597]
[1751302584933,0.01,2480.1,2480.0,12.79560791]
[1751302585430,0.01,2480.1,2480.0,16.82786597]
[1751302585828,0.01,2480.1,2480.0,19.23859074]
[1751302586048,0.01,2480.1,2480.0,15.20633268]
[1751302586351,0.01,2480.1,2480.0,19.23859074]
[1751302586563,0.01,2480.1,2480.0,3.64670791]
[1751302586724,0.01,2480.1,2480.0,11.65332649]
[1751302587124,4.04209548,2480.1,2480.0,2.77432649]
[1751302587358,4.04209548,2480.1,2480.0,11.10332649]
[1751302588257,4.04209548,2480.1,2480.0,2.88988991]
[1751302588459,4.04209548,2480.1,2480.0,9.49488991]
[1751302588651,4.04209548,2480.1,2480.0,2.88988991]
[1751302588848,4.92573896,2480.1,2480.0,2.88988991]
[1751302589051,5.69683896,2480.1,2480.0,1.16588991]
[1751302589457,5.69683896,2480.1,2480.0,0.96428991]
[1751302589674,5.69683896,2480.1,2480.0,7.56928991]
[1751302591561,5.69683896,2480.1,2480.0,0.96428991]
[1751302593573,4.03242066,2479.9,2479.8,6.605]
[1751302593876,4.03242066,2479.9,2479.8,7.57102248]
[1751302595033,5.40857604,2479.9,2479.8,7.57102248]
[1751302595233,6.23037604,2479.9,2479.8,0.96602248]
[1751302595445,4.03274589,2479.7,2479.6,6.606]
[1751302595645,4.03274589,2479.7,2479.6,7.57154954]
[1751302596074,4.85454589,2479.7,2479.6,0.96554954]
[1751302596273,5.7869295,2479.7,2479.6,0.96554954]
[1751302596477,4.85503384,2479.4,2479.3,6.606]
[1751302596690,4.85503384,2479.4,2479.3,2.17213474]
[1751302596894,4.85503384,2479.4,2479.3,8.77813474]
[1751302597888,4.85503384,2479.4,2479.3,2.17213474]
[1751302598387,4.85503384,2479.4,2479.3,7.57113568]
[1751302598587,4.03323384,2479.4,2479.3,7.57113568]
[1751302598792,4.03323384,2479.4,2479.3,8.77813474]
[1751302600490,4.03323384,2479.4,2479.3,7.57113568]
[1751302606002,4.03323384,2479.4,2479.3,7.77273568]
[1751302612224,4.03317493,2479.5,2479.3,8.67270915]
[1751302612404,4.03317493,2479.5,2479.4,0.96513568]
[1751302614212,4.85597493,2479.5,2479.4,0.96513568]
[1751302621074,4.03317493,2479.5,2479.4,2.17213474]
[1751302621980,4.04317493,2479.5,2479.4,0.96513568]
[1751302622460,4.04317493,2479.5,2479.4,2.17213474]
[1751302623473,0.01,2479.5,2479.4,2.57357226]
[1751302623679,4.04307118,2479.5,2479.4,4.15611156]
[1751302624059,4.04307118,2479.5,2479.4,0.96513568]
[1751302624256,4.04307118,2479.5,2479.4,2.17492774]
[1751302625871,4.83527118,2479.5,2479.4,2.17492774]
[1751302628888,4.04307118,2479.5,2479.4,2.17492774]
[1751302629549,4.04307118,2479.5,2479.4,0.96513568]
[1751302630077,0.01,2479.5,2479.4,0.96513568]
[1751302630266,0.01,2479.5,2479.4,3.59014949]
[1751302630467,0.01,2479.5,2479.4,1.98171291]
[1751302630784,0.01,2479.5,2479.4,7.34374675]
[1751302630957,0.01,2479.5,2479.4,3.31051291]
[1751302631183,4.03275559,2479.7,2479.5,0.55]
[1751302631376,4.03275559,2479.7,2479.6,7.90018697]
[1751302631576,4.03275559,2479.7,2479.6,8.10178697]
[1751302632382,4.03264609,2479.8,2479.6,9.71407405]
[1751302632583,4.03264609,2479.8,2479.7,0.96513568]
[1751302632996,4.03264609,2479.8,2479.7,2.57742276]
[1751302633270,4.0324813,2479.9,2479.7,2.57742276]
[1751302633271,4.03250315,2479.9,2479.7,2.23345244]
[1751302633471,4.03250315,2479.9,2479.8,2.94547962]
[1751302633811,4.03250315,2479.9,2479.8,2.37557962]
[1751302635770,4.03250315,2479.9,2479.8,3.15347962]
[1751302635982,4.03229787,2480.0,2479.8,3.15347962]
[1751302636182,0.01,2480.1,2479.9,7.56813568]
[1751302636412,4.04217097,2480.1,2480.0,0.96513568]
[1751302636710,4.04217097,2480.1,2480.0,1.16673568]
[1751302637410,0.01,2480.1,2480.0,1.16673568]
[1751302637627,0.01,2480.1,2480.0,2.25608131]
[1751302638313,4.04209548,2480.1,2480.0,2.25608131]
[1751302638606,4.04209548,2480.1,2480.0,1.16673568]
[1751302639279,0.01,2480.1,2480.0,1.16673568]
[1751302639513,0.01,2480.1,2480.0,3.69857962]
[1751302639711,0.01,2480.1,2480.0,6.52199374]
[1751302639880,0.01,2480.1,2480.0,2.48973568]
[1751302640080,0.01,2480.1,2480.0,8.57068453]
[1751302641191,0.01,2480.1,2480.0,4.53842647]
[1751302641594,0.01,2480.1,2480.0,8.57068453]
[1751302641818,0.01,2480.1,2480.0,10.18297161]
[1751302642325,0.01,2480.1,2480.0,8.57068453]
[1751302642514,0.01,2480.1,2480.0,18.57068453]
[1751302642715,0.01,2480.1,2480.0,20.18297161]
[1751302643217,0.01,2480.1,2480.0,16.15071355]
[1751302643406,0.01,2480.1,2480.0,18.57068453]
[1751302643607,0.01,2480.1,2480.0,14.53842647]
[1751302643999,0.01,2480.1,2480.0,18.57068453]
[1751302644200,0.01,2480.1,2480.0,20.18297161]
[1751302644397,0.01,2480.1,2480.0,16.15071355]
[1751302646331,0.01,2480.1,2480.0,14.53842647]
[1751302646494,4.04209548,2480.1,2480.0,14.53842647]
[1751302646698,4.04209548,2480.1,2480.0,4.53842647]
[1751302646895,4.04209548,2480.1,2480.0,1.16673568]
[1751302647118,4.04209548,2480.1,2480.0,7.76773568]
[1751302647796,4.04209548,2480.1,2480.0,8.97239901]
[1751302649192,4.80969548,2480.1,2480.0,7.76673568]
[1751302649899,4.04209548,2480.1,2480.0,7.76673568]
[1751302654420,5.62206666,2480.1,2480.0,7.76673568]
[1751302654726,5.62206666,2480.1,2480.0,1.16673568]
[1751302654928,5.62206666,2480.1,2480.0,7.76673568]
[1751302659841,5.62206666,2480.1,2480.0,7.76573568]
[1751302660137,5.62206666,2480.1,2480.0,7.56413568]
[1751302660849,12.13705879,2480.1,2480.0,0.96513568]
[1751302661165,4.82284589,2479.7,2479.6,1.40626333]
[1751302661346,4.82284589,2479.7,2479.6,8.97166045]
[1751302667061,4.03274589,2479.7,2479.6,8.97166045]
[1751302667229,4.03274589,2479.7,2479.6,9.3792842]
[1751302669469,4.03266705,2479.8,2479.6,9.3792842]
[1751302669647,4.03266705,2479.8,2479.7,0.96639712]
[1751302669850,4.03266705,2479.8,2479.7,1.16799712]
[1751302670049,4.03266705,2479.8,2479.7,2.7802842]
[1751302670670,0.01,2480.1,2479.7,3.6066842]
[1751302670873,4.03235219,2480.0,2479.9,1.20733057]
[1751302671042,4.03235219,2480.0,2479.9,8.77272769]
[1751302671243,4.03235219,2480.0,2479.9,8.97432769]
[1751302671874,4.03235219,2480.0,2479.9,7.76699712]
[1751302672747,4.85715219,2480.0,2479.9,7.76699712]
[1751302672943,5.7472501,2480.0,2479.9,1.16799712]
[1751302673144,5.7472501,2480.0,2479.9,7.76599712]
[1751302673439,5.7472501,2480.0,2479.5,2.92233057]
[1751302673440,4.03290853,2479.6,2479.5,2.92233057]
[1751302673644,4.83560853,2479.6,2479.5,7.56407898]
[1751302673837,4.83560853,2479.6,2479.5,7.76567898]
[1751302676391,4.83560853,2479.6,2479.5,1.16767898]
[1751302676690,5.72244397,2479.6,2479.5,1.16767898]
[1751302677761,5.72244397,2479.6,2479.5,0.96607898]
[1751302679390,4.03290853,2479.6,2479.5,0.96607898]
[1751302679562,4.03290853,2479.6,2479.5,2.17340955]
[1751302681090,4.03290853,2479.6,2479.5,2.37500955]
[1751302682318,4.03290853,2479.6,2479.5,1.16767898]
[1751302684800,4.03290853,2479.6,2479.5,0.96607898]
[1751302684999,4.92260397,2479.6,2479.5,0.96607898]
[1751302686497,5.67930397,2479.6,2479.5,0.96607898]
[1751302686897,4.03339652,2479.3,2479.2,6.7996]
[1751302687102,4.03339652,2479.3,2479.2,7.76604657]
[1751302687904,4.03339652,2479.3,2479.2,1.16804657]
[1751302690102,4.03339652,2479.3,2479.2,3.16427714]
[1751302691518,4.03339652,2479.3,2479.2,1.16804657]
[1751302694950,4.03331277,2479.4,2479.2,1.16804657]
[1751302695116,4.03331277,2479.4,2479.3,2.17392866]
[1751302695316,4.03331277,2479.4,2479.3,2.37552866]
[1751302696533,4.03300499,2479.6,2479.3,2.37552866]
[1751302696734,4.03307118,2479.5,2479.4,7.56344657]
[1751302696916,4.03299116,2479.6,2479.5,0.2016]
[1751302697110,4.03299116,2479.6,2479.5,1.16804657]
[1751302697741,4.04282029,2479.7,2479.5,1.16804657]
[1751302698041,4.04282029,2479.7,2479.6,0.96644657]
[1751302699244,4.04282029,2479.7,2479.6,2.17392866]
[1751302699843,0.01,2479.7,2479.6,2.17392866]
[1751302700046,0.01,2479.7,2479.6,3.01358343]
[1751302700413,0.01,2479.7,2479.6,4.62587051]
[1751302701215,0.01,2479.7,2479.6,7.04649196]
[1751302701813,0.01,2479.7,2479.6,7.59649196]
[1751302702232,0.01,2479.7,2479.6,3.56358343]
[1751302704525,0.01,2479.7,2479.6,5.17358385]
[1751302705244,0.01,2479.7,2479.6,4.62358385]
[1751302705450,4.04274589,2479.7,2479.6,3.40034699]
[1751302706564,4.04274589,2479.7,2479.6,3.39983242]
[1751302707262,4.04274589,2479.7,2479.6,2.57593242]
[1751302707633,4.04274589,2479.7,2479.6,9.16993242]
[1751302708661,4.87234589,2479.7,2479.6,8.76739308]
[1751302708871,5.76284101,2479.7,2479.6,8.76739308]
[1751302709438,5.76284101,2479.7,2479.6,2.17339308]
[1751302709977,5.76284101,2479.7,2479.6,0.96644657]
[1751302710870,5.68474101,2479.7,2479.6,0.96644657]
[1751302711033,4.78440853,2479.6,2479.5,0.02]
[1751302711358,4.78440853,2479.6,2479.5,0.98570435]
[1751302711359,6.55943402,2479.6,2479.5,0.98570435]
[1751302711571,13.84682615,2479.6,2479.5,0.98570435]
[1751302711727,23.84682615,2479.6,2479.5,0.02]
[1751302712126,27.84682615,2479.6,2479.5,0.02]
[1751302712550,29.55982615,2479.6,2479.5,0.02]
[1751302712731,4.78505921,2479.2,2479.1,0.02]
[1751302712932,4.03404735,2478.9,2478.8,1.20694651]
[1751302713131,4.03404735,2478.9,2478.7,1.20694651]
[1751302713132,14.7857101,2478.8,2478.7,1.20694651]
[1751302713343,4.86407285,2478.7,2478.6,1.20694651]
[1751302713651,4.86423562,2478.6,2478.5,0.02]
[1751302713858,12.15162775,2478.6,2478.5,0.02]
[1751302714172,16.44854865,2478.6,2478.5,0.02]
[1751302715538,16.44854865,2478.6,2478.2,0.02]
[1751302715539,4.035024,2478.3,2478.2,1.22694651]
[1751302715768,35.16403439,2478.3,2478.2,1.22694651]
[1751302716077,35.16403439,2478.3,2478.2,0.02]
[1751302716282,35.71403439,2478.3,2478.2,0.02]
[1751302716485,35.16403439,2478.3,2478.2,0.02]
[1751302716780,19.69841544,2478.3,2478.2,0.02]
[1751302716958,28.00441544,2478.3,2478.2,0.02]
[1751302718975,19.69841544,2478.3,2478.2,0.02]
[1751302719382,28.00641544,2478.3,2478.2,0.02]
[1751302720609,19.69841544,2478.3,2478.2,0.02]
[1751302720768,28.00641544,2478.3,2478.2,0.02]
[1751302722593,28.00741544,2478.3,2478.2,0.02]
[1751302723598,19.69841544,2478.3,2478.2,0.02]
[1751302725080,18.89701544,2478.3,2478.2,0.02]
[1751302725395,18.035024,2478.3,2478.2,0.02]
[1751302728199,8.035024,2478.3,2478.2,0.02]
[1751302728499,4.035024,2478.3,2478.2,0.02]
[1751302728878,4.03487317,2478.4,2478.2,0.8227]
[1751302729199,4.03487317,2478.4,2478.2,1.0243]
[1751302729200,4.035024,2478.3,2478.2,1.0243]
[1751302730699,4.03498684,2478.4,2478.2,1.0243]
[1751302731208,4.035024,2478.3,2478.2,1.0243]
[1751302732425,4.84302508,2478.3,2478.2,0.2216]
[1751302732639,4.84302508,2478.3,2478.2,0.02]
[1751302737641,5.63402508,2478.3,2478.2,0.02]
[1751302738912,4.84302508,2478.3,2478.2,0.02]
[1751302739546,4.035024,2478.3,2478.2,0.02]
[1751302741853,4.03490121,2478.4,2478.3,0.8145]
[1751302741854,4.03502076,2478.4,2478.3,0.8145]
[1751302742557,4.035024,2478.3,2478.2,0.2216]
[1751302742851,4.035024,2478.3,2478.2,1.18776671]
[1751302743933,4.92350848,2478.3,2478.2,0.98616671]
[1751302744143,4.92350848,2478.3,2478.2,0.02]
[1751302745218,8.92350848,2478.3,2478.2,0.02]
[1751302746345,18.92350848,2478.3,2478.2,0.02]
[1751302754844,19.70020848,2478.3,2478.2,0.02]
[1751302763867,21.41120848,2478.3,2478.2,0.02]
[1751302765270,19.70020848,2478.3,2478.2,0.02]
[1751302765468,17.41120848,2478.3,2478.2,0.02]
[1751302766172,14.92350848,2478.3,2478.2,0.02]
[1751302768455,18.92350848,2478.3,2478.2,0.02]
[1751302775581,18.92350848,2478.3,2478.2,0.8171]
[1751302775880,18.92350848,2478.3,2478.2,0.02]
[1751302779386,4.035024,2478.3,2478.2,0.2216]
[1751302779689,4.035024,2478.3,2478.2,1.19031584]
[1751302779873,4.035024,2478.3,2478.2,0.98871584]
[1751302780380,4.035024,2478.3,2478.2,0.02]
[1751302781152,8.035024,2478.3,2478.2,0.02]
[1751302781347,10.70054461,2478.3,2478.2,0.02]
[1751302783056,8.035024,2478.3,2478.2,0.02]
[1751302784082,4.035024,2478.3,2478.2,0.02]
[1751302787092,8.035024,2478.3,2478.2,0.02]
[1751302788183,8.035024,2478.3,2478.2,0.823]
[1751302788509,8.035024,2478.3,2478.2,1.0246]
[1751302788984,8.035024,2478.3,2478.2,1.99325777]
[1751302789182,4.0,2478.3,2478.2,1.99325777]
[1751302789368,4.04483776,2478.5,2478.2,1.99325777]
[1751302789369,0.01,2478.5,2478.2,1.99325777]
[1751302789570,4.04470819,2478.5,2478.3,0.96865777]
[1751302789815,0.01,2478.5,2478.4,0.2016]
[1751302790014,4.01,2478.5,2478.4,1.0046]
[1751302790199,4.01,2478.5,2478.4,1.97307017]
[1751302790374,0.01,2478.5,2478.4,2.5756417]
[1751302795397,4.0446984,2478.5,2478.4,1.1698246]
[1751302799117,0.01,2478.5,2478.4,1.1698246]
[1751302799629,4.0446984,2478.5,2478.4,1.1698246]
[1751302799840,0.01,2478.5,2478.4,0.2016]
[1751302799997,0.01,2478.5,2478.4,1.16777376]
[1751302800213,4.0446984,2478.5,2478.4,1.16777376]
[1751302800409,0.01,2478.5,2478.4,1.16777376]
[1751302801060,0.01,2478.5,2478.4,2.24163286]
[1751302801242,0.01,2478.5,2478.4,3.44935006]
[1751302801550,0.01,2478.5,2478.4,2.24163286]
[1751302803456,4.0446984,2478.5,2478.4,2.24163286]
[1751302803636,0.01,2478.5,2478.4,1.92057376]
[1751302804916,4.0446984,2478.5,2478.4,1.92057376]
[1751302805117,0.01,2478.5,2478.4,1.92057376]
[1751302805338,0.01,2478.5,2478.4,8.50757376]
[1751302805645,4.0446984,2478.5,2478.4,8.50757376]
[1751302805952,4.0446984,2478.5,2478.4,7.75477376]
[1751302806148,0.01,2478.5,2478.4,7.75477376]
[1751302806445,4.0446984,2478.5,2478.4,7.75477376]
[1751302808147,0.01,2478.5,2478.4,7.75477376]
[1751302808348,0.01,2478.5,2478.4,16.85787555]
[1751302810247,0.01,2478.5,2478.4,20.89273675]
[1751302811231,0.01,2478.5,2478.4,18.06559275]
[1751302811620,0.01,2478.5,2478.4,16.85787555]
[1751302811821,4.0446984,2478.5,2478.4,1.16777376]
[1751302812618,4.0446984,2478.5,2478.4,7.75277376]
[1751302815360,0.01,2478.5,2478.4,7.75277376]
[1751302816940,0.01,2478.5,2478.4,15.83963645]
[1751302817249,0.01,2478.5,2478.4,17.04735365]
[1751302817451,0.01,2478.5,2478.4,18.9150376]
[1751302818172,0.01,2478.5,2478.4,17.7073204]
[1751302818456,0.01,2478.5,2478.4,18.91630413]
[1751302818865,0.01,2478.5,2478.4,18.91629999]
[1751302819244,0.01,2478.5,2478.4,17.7073204]
[1751302819438,0.01,2478.5,2478.4,21.7421816]
[1751302819637,0.01,2478.5,2478.4,32.2921816]
[1751302820252,0.01,2478.5,2478.4,21.1223204]
[1751302820560,0.01,2478.5,2478.4,22.73513123]
[1751302820762,0.01,2478.5,2478.4,27.7073204]
[1751302820950,0.01,2478.5,2478.4,9.62045771]
[1751302821381,0.01,2478.5,2478.4,11.23326854]
[1751302821934,0.01,2478.5,2478.4,4.64826854]
[1751302822149,0.01,2478.5,2478.4,11.23226854]
[1751302822484,0.01,2478.5,2478.4,9.61945771]
[1751302823441,0.01,2478.5,2478.4,14.48541891]
[1751302823668,0.01,2478.5,2478.4,16.90451246]
[1751302823871,0.01,2478.5,2478.4,12.86965126]
[1751302824564,0.01,2478.5,2478.4,10.45055771]
[1751302825133,0.01,2478.5,2478.4,14.48541891]
[1751302825336,0.01,2478.5,2478.4,16.90451246]
[1751302826063,0.01,2478.5,2478.4,26.90451246]
[1751302826266,0.01,2478.5,2478.4,25.03541891]
[1751302826853,0.01,2478.5,2478.4,25.23876875]
[1751302827165,4.03358033,2479.2,2478.8,0.7971]
[1751302827379,4.03358033,2479.2,2478.9,8.75949403]
[1751302827579,4.03358033,2479.2,2479.1,0.2016]
[1751302827783,6.06210257,2479.3,2479.1,7.75177376]
[1751302827937,6.06210257,2479.3,2479.2,0.96617376]
[1751302829438,4.03355921,2479.2,2479.1,6.7856]
[1751302829771,4.03355921,2479.2,2479.1,7.75284977]
[1751302832381,4.82635921,2479.2,2479.1,1.16884977]
[1751302832672,5.91520093,2479.2,2479.1,0.96724977]
[1751302832883,15.91520093,2479.2,2479.1,0.96724977]
[1751302833083,15.91520093,2479.2,2478.5,2.02582508]
[1751302833084,4.03388463,2479.0,2478.5,2.02582508]
[1751302833259,4.03404735,2478.9,2478.8,0.2016]
[1751302833600,4.03404735,2478.9,2478.8,1.16847155]
[1751302835898,4.04404735,2478.9,2478.8,1.16847155]
[1751302838497,0.01,2478.9,2478.8,2.06456121]
[1751302838785,0.01,2478.9,2478.8,3.27398629]
[1751302838954,0.01,2478.9,2478.8,2.06456121]
[1751302839154,0.01,2478.9,2478.8,2.89246121]
[1751302839474,0.01,2478.9,2478.8,4.50488823]
[1751302839680,0.01,2478.9,2478.8,8.53909833]
[1751302840981,0.01,2478.9,2478.8,4.50488823]
[1751302841410,0.01,2478.9,2478.8,3.67698823]
[1751302843374,4.04404735,2478.9,2478.8,10.25898823]
[1751302843948,0.01,2478.9,2478.8,10.25898823]
[1751302846883,0.01,2478.9,2478.8,14.29319833]
[1751302847223,0.01,2478.9,2478.8,8.64656121]
[1751302847408,0.01,2478.9,2478.8,10.25740432]
[1751302849197,0.01,2478.9,2478.8,14.29161442]
[1751302849394,0.01,2478.9,2478.8,10.25740432]
[1751302849596,0.01,2478.9,2478.8,14.29161442]
[1751302849997,0.01,2478.9,2478.8,10.25740432]
[1751302851771,4.04404735,2478.9,2478.8,8.95799323]
[1751302854098,4.04404735,2478.9,2478.8,2.37699323]
[1751302854422,4.04404735,2478.9,2478.8,8.95699323]
[1751302862946,4.04404735,2478.9,2478.8,8.51207155]
[1751302862947,0.01,2478.9,2478.8,8.51207155]
[1751302865532,0.01,2478.9,2478.8,10.1243681]
[1751302865722,0.01,2478.9,2478.8,12.51244325]
[1751302866121,0.01,2478.9,2478.8,10.9001467]
[1751302868208,0.01,2478.9,2478.8,13.31878724]
[1751302871240,0.01,2478.9,2478.8,17.35299734]
[1751302872445,0.01,2478.9,2478.8,27.90299734]
[1751302872644,0.01,2478.9,2478.8,21.4501467]
[1751302872831,0.01,2478.9,2478.8,28.20340939]
[1751302873019,0.01,2478.9,2478.8,30.62237127]
[1751302873343,0.01,2478.9,2478.8,15.01910858]
[1751302873546,0.01,2478.9,2478.8,9.44847155]
[1751302873717,4.04404735,2478.9,2478.8,1.16847155]
[1751302873909,4.04404735,2478.9,2478.8,7.74547155]
[1751302874715,4.04404735,2478.9,2478.8,1.16847155]
[1751302875045,4.04404735,2478.9,2478.8,7.74547155]
[1751302876948,4.04404735,2478.9,2478.8,1.16847155]
[1751302877138,4.04404735,2478.9,2478.8,7.74547155]
[1751302877333,4.93328722,2478.9,2478.8,2.37806461]
[1751302877646,4.93328722,2478.9,2478.8,8.95506461]
[1751302878023,5.71208722,2478.9,2478.8,0.96687155]
[1751302878227,15.71208722,2478.9,2478.8,0.96687155]
[1751302878422,19.71208722,2478.9,2478.8,0.96687155]
[1751302883257,8.82284735,2478.9,2478.8,0.96687155]
[1751302885065,8.04404735,2478.9,2478.8,0.96687155]
[1751302885271,8.04404735,2478.9,2478.8,2.17646461]
[1751302886342,8.04404735,2478.9,2478.8,0.96687155]
[1751302889166,4.03437285,2478.7,2478.6,0.2016]
[1751302889466,4.03437285,2478.7,2478.6,1.16847444]
[1751302889648,4.79347285,2478.7,2478.6,0.2016]
[1751302890038,6.48064985,2478.7,2478.6,0.2016]
[1751302890237,6.48064985,2478.7,2478.5,0.02]
[1751302890238,4.03453562,2478.6,2478.5,0.02]
[1751302890437,4.03453562,2478.6,2478.5,0.98676756]
[1751302890664,4.03453562,2478.6,2478.5,1.99766756]
[1751302891475,4.03446337,2478.7,2478.5,1.99766756]
[1751302891681,4.03428888,2478.8,2478.6,0.96676756]
[1751302891979,4.03437285,2478.7,2478.5,9.54375575]
[1751302892135,4.03430765,2478.8,2478.7,0.2016]
[1751302892342,4.03430765,2478.8,2478.7,1.16811715]
[1751302892641,4.0342101,2478.8,2478.7,1.16811715]
[1751302893472,4.0441106,2478.9,2478.7,1.16811715]
[1751302893764,4.0441106,2478.9,2478.8,0.96651715]
[1751302895672,0.01,2478.9,2478.8,0.96651715]
[1751302895970,0.01,2478.9,2478.8,10.2785729]
[1751302896171,0.01,2478.9,2478.8,9.06897984]
[1751302896841,4.04404735,2478.9,2478.8,2.17377857]
[1751302897063,4.04404735,2478.9,2478.8,8.7497571]
[1751302897787,4.04404735,2478.9,2478.8,7.54251715]
[1751302898092,4.04404735,2478.9,2478.8,8.7497571]
[1751302898943,0.01,2478.9,2478.8,9.88221428]
[1751302900772,0.01,2478.9,2478.8,10.64271428]
[1751302901279,0.01,2478.9,2478.8,9.43547433]
[1751302902272,4.04404735,2478.9,2478.8,10.6429038]